bitfinex-derivatives/quotes_ETHF0:USTF0_20250604
["timestamp","ask_amount","ask_price","bid_price","bid_amount"]
[1749020213524,1.82845204,2630.3,2630.2,0.75985]
[1749020220411,1.82845204,2630.3,2630.2,18.11685]
[1749020220911,0.75987,2630.2,2630.1,4.473]
[1749020221117,4.36547204,2630.2,2630.1,21.83]
[1749020221922,4.43251806,2630.2,2630.1,21.83]
[1749020222424,4.43251806,2630.2,2630.1,4.473]
[1749020222714,0.7599,2630.1,2630.0,0.75993816]
[1749020222919,1.82850204,2630.1,2630.0,17.35700816]
[1749020223415,3.05670204,2630.1,2630.0,18.11693816]
[1749020223611,3.05670204,2630.1,2630.0,17.35700816]
[1749020223921,3.05791501,2630.1,2630.0,17.35700816]
[1749020224721,3.05772244,2630.1,2630.0,17.35700816]
[1749020225823,3.05772244,2630.1,2630.0,18.11693816]
[1749020226007,3.05772244,2630.1,2630.0,0.75993816]
[1749020226211,3.05772244,2630.1,2630.0,17.35600816]
[1749020227214,3.05772244,2630.1,2630.0,18.11593816]
[1749020227619,3.05772244,2630.1,2630.0,17.35600816]
[1749020228324,3.05772244,2630.1,2630.0,18.11593816]
[1749020228528,3.05772244,2630.1,2630.0,17.35600816]
[1749020228727,3.05715795,2630.1,2630.0,17.35600816]
[1749020229423,3.05715795,2630.1,2630.0,18.11593816]
[1749020232824,3.0567642,2630.1,2630.0,18.11593816]
[1749020236024,3.0567642,2630.1,2630.0,8.16e-06]
[1749020236221,3.0567642,2630.1,2630.0,17.35600816]
[1749020236621,3.0567642,2630.1,2630.0,8.16e-06]
[1749020236826,3.05700174,2630.1,2630.0,17.35600816]
[1749020237430,3.05700174,2630.1,2630.0,18.11593816]
[1749020237728,1.82880174,2630.1,2630.0,18.11593816]
[1749020237930,1.82880174,2630.1,2630.0,17.35600816]
[1749020238131,3.13620174,2630.1,2630.0,17.35600816]
[1749020240727,3.1363005,2630.1,2630.0,17.35600816]
[1749020240927,3.13630029,2630.1,2630.0,17.35600816]
[1749020241128,3.20334631,2630.1,2630.0,17.35600816]
[1749020241729,3.20334631,2630.1,2630.0,8.16e-06]
[1749020241928,3.20334631,2630.1,2630.0,17.35600816]
[1749020243836,6.41114631,2630.1,2630.0,17.35600816]
[1749020244931,6.4112366,2630.1,2630.0,8.16e-06]
[1749020245426,6.4112366,2630.1,2630.0,17.35600816]
[1749020248940,6.41146024,2630.1,2630.0,17.35600816]
[1749020249648,6.41146024,2630.1,2630.0,8.16e-06]
[1749020250035,11.41146024,2630.1,2630.0,8.16e-06]
[1749020252743,11.41097995,2630.1,2630.0,8.16e-06]
[1749020257453,6.41097995,2630.1,2630.0,8.16e-06]
[1749020259555,5.10357995,2630.1,2630.0,8.16e-06]
[1749020260753,5.10297642,2630.1,2630.0,8.16e-06]
[1749020260958,1.89517642,2630.1,2630.0,8.16e-06]
[1749020262954,1.89517642,2630.1,2630.0,1.95990816]
[1749020264359,1.89517642,2630.1,2630.0,19.31390816]
[1749020264761,1.89540797,2630.1,2630.0,8.16e-06]
[1749020264963,1.89540797,2630.1,2630.0,17.35400816]
[1749020268660,1.90773898,2630.1,2630.0,17.35400816]
[1749020270658,5.11553898,2630.1,2630.0,17.35400816]
[1749020270858,5.11553898,2630.1,2630.0,8.16e-06]
[1749020271160,5.11553898,2630.1,2630.0,17.35300816]
[1749020272667,5.11584667,2630.1,2630.0,17.35300816]
[1749020272856,5.11584086,2630.1,2630.0,17.35300816]
[1749020273061,5.11584086,2630.1,2630.0,8.16e-06]
[1749020273261,5.1158297,2630.1,2630.0,8.16e-06]
[1749020280763,5.11577934,2630.1,2630.0,8.16e-06]
[1749020283470,4.03474602,2630.1,2630.0,8.16e-06]
[1749020283678,5.11583346,2630.1,2630.0,8.16e-06]
[1749020287577,5.11573956,2630.1,2630.0,8.16e-06]
[1749020288181,4.03474602,2630.1,2630.0,8.16e-06]
[1749020288374,5.11574931,2630.1,2630.0,8.16e-06]
[1749020291574,4.03474602,2630.1,2630.0,8.16e-06]
[1749020291782,5.11535829,2630.1,2630.0,8.16e-06]
[1749020292183,1.90755829,2630.1,2630.0,8.16e-06]
[1749020293081,5.11535829,2630.1,2630.0,8.16e-06]
[1749020295685,5.11582857,2630.1,2630.0,8.16e-06]
[1749020296287,1.90802857,2630.1,2630.0,8.16e-06]
[1749020299698,1.90821687,2630.1,2630.0,8.16e-06]
[1749020303898,1.9082138,2630.1,2630.0,8.16e-06]
[1749020307701,0.82694602,2630.1,2630.0,8.16e-06]
[1749020307902,1.90833314,2630.1,2630.0,8.16e-06]
[1749020311218,0.82694602,2630.1,2630.0,8.16e-06]
[1749020311411,1.90841549,2630.1,2630.0,8.16e-06]
[1749020311708,0.82694602,2630.1,2630.0,8.16e-06]
[1749020311910,1.90843293,2630.1,2630.0,8.16e-06]
[1749020313004,3.23303293,2630.1,2630.0,8.16e-06]
[1749020315709,3.2328823,2630.1,2630.0,8.16e-06]
[1749020317013,7.6978823,2630.1,2630.0,8.16e-06]
[1749020318503,1.9082823,2630.1,2630.0,8.16e-06]
[1749020323624,1.90522365,2630.1,2630.0,8.16e-06]
[1749020326424,5.11302365,2630.1,2630.0,8.16e-06]
[1749020327623,4.03474602,2630.1,2630.0,8.16e-06]
[1749020327825,5.1131389,2630.1,2630.0,8.16e-06]
[1749020331226,1.9053389,2630.1,2630.0,5.75993816]
[1749020331423,1.9053389,2630.1,2630.0,10.22493816]
[1749020331627,1.90294765,2630.1,2630.0,13.43273816]
[1749020333523,1.90181638,2630.1,2630.0,13.43273816]
[1749020333736,1.14191638,2630.1,2630.0,13.43273816]
[1749020335629,0.06704602,2630.1,2630.0,13.43273816]
[1749020336332,0.82694602,2630.1,2630.0,13.43273816]
[1749020336634,1.90138855,2630.1,2630.0,13.43273816]
[1749020339744,1.90079246,2630.1,2630.0,13.43273816]
[1749020340027,1.90079246,2630.1,2630.0,8.20780816]
[1749020340223,1.90079246,2630.1,2630.0,25.00980816]
[1749020340436,1.90079246,2630.1,2630.0,25.76973816]
[1749020342432,1.90062763,2630.1,2630.0,25.76973816]
[1749020343234,1.14072763,2630.1,2630.0,25.76973816]
[1749020344233,1.90062763,2630.1,2630.0,25.76973816]
[1749020346332,0.82694602,2630.1,2630.0,25.76973816]
[1749020346635,0.06704602,2630.1,2630.0,30.76973816]
[1749020351540,0.06704602,2630.1,2630.0,31.14993816]
[1749020360245,1.16132942,2630.1,2630.0,31.14993816]
[1749020361742,1.16132942,2630.1,2630.0,26.14393816]
[1749020362550,0.06704602,2630.1,2630.0,26.14393816]
[1749020362851,1.92175073,2630.1,2630.0,26.14293816]
[1749020364538,1.92175073,2630.1,2630.0,8.80893816]
[1749020364743,3.18105073,2630.1,2630.0,26.14293816]
[1749020365545,3.18105073,2630.1,2630.0,8.80893816]
[1749020365739,3.18105073,2630.1,2630.0,26.14293816]
[1749020367246,3.18105073,2630.1,2630.0,8.04900816]
[1749020367446,3.18116747,2630.1,2630.0,25.38300816]
[1749020367751,3.18116747,2630.1,2630.0,3.58800816]
[1749020367954,3.18116747,2630.1,2630.0,25.38300816]
[1749020368247,3.18116747,2630.1,2630.0,26.14293816]
[1749020368649,3.18116747,2630.1,2630.0,17.71420816]
[1749020370254,3.18116747,2630.1,2630.0,17.33400816]
[1749020370553,3.18116747,2630.1,2630.0,17.71420816]
[1749020370753,3.18068166,2630.1,2630.0,17.71420816]
[1749020372049,3.18068166,2630.1,2630.0,20.92200816]
[1749020372245,3.18068166,2630.1,2630.0,21.68193816]
[1749020372448,3.18068166,2630.1,2630.0,21.30173816]
[1749020373950,3.18068166,2630.1,2630.0,20.54180816]
[1749020374451,3.18068166,2630.1,2630.0,21.30173816]
[1749020374654,3.18068166,2630.1,2630.0,20.54180816]
[1749020374853,3.18004911,2630.1,2630.0,20.54180816]
[1749020378753,2.08624602,2630.1,2630.0,20.54180816]
[1749020378950,3.18694238,2630.1,2630.0,20.54180816]
[1749020386867,0.82694602,2630.1,2630.0,21.30173816]
[1749020387069,1.92786457,2630.1,2630.0,20.54180816]
[1749020388170,1.92786457,2630.1,2630.0,21.30173816]
[1749020388569,1.92786457,2630.1,2630.0,20.54180816]
[1749020389767,1.92786457,2630.1,2630.0,21.30173816]
[1749020389969,1.92786457,2630.1,2630.0,20.54180816]
[1749020390171,1.92786457,2630.1,2630.0,21.30174816]
[1749020390967,1.92831526,2630.1,2630.0,21.30174816]
[1749020391774,1.92831526,2630.1,2630.0,20.54180816]
[1749020391969,1.92831526,2630.1,2630.0,21.30174816]
[1749020393175,1.92861561,2630.1,2630.0,21.30174816]
[1749020393569,0.82694602,2630.1,2630.0,21.30174816]
[1749020393769,1.92873514,2630.1,2630.0,21.30174816]
[1749020393969,1.92874799,2630.1,2630.0,21.30174816]
[1749020394882,1.92874799,2630.1,2630.0,20.54180816]
[1749020395371,1.92906793,2630.1,2630.0,20.54180816]
[1749020397579,1.92906793,2630.1,2630.0,17.33400816]
[1749020397877,1.92906793,2630.1,2630.0,8.16e-06]
[1749020398084,1.92906793,2630.1,2630.0,17.33200816]
[1749020398374,1.92906793,2630.1,2630.0,4.45900816]
[1749020398584,3.20176793,2630.1,2630.0,4.45900816]
[1749020398877,3.20176793,2630.1,2630.0,21.79000816]
[1749020399370,3.2025358,2630.1,2630.0,21.79000816]
[1749020399785,1.9298358,2630.1,2630.0,21.79000816]
[1749020399977,1.9298358,2630.1,2630.0,22.54994816]
[1749020400177,1.9298358,2630.1,2630.0,25.75774816]
[1749020400376,1.1699358,2630.1,2630.0,25.75774816]
[1749020400880,1.1699358,2630.1,2630.0,32.01454816]
[1749020401472,1.1699358,2630.1,2630.0,27.01454816]
[1749020401672,1.16978274,2630.1,2630.0,27.01454816]
[1749020402080,0.75981,2630.6,2630.5,0.75977]
[1749020402381,3.21349725,2631.3,2630.5,6.35547]
[1749020402681,0.7596,2631.2,2631.1,0.75959]
[1749020402883,0.7596,2631.2,2631.1,21.788]
[1749020404373,2.0897,2631.2,2631.1,21.788]
[1749020405081,0.7596,2631.2,2631.1,22.54762]
[1749020405282,0.00569725,2631.3,2631.2,0.75959]
[1749020405585,1.2976,2631.7,2631.1,21.788]
[1749020405586,0.75934,2632.1,2632.0,0.75935]
[1749020405772,0.75933,2632.1,2632.0,21.785]
[1749020406579,5.73023725,2632.3,2631.8,0.00569725]
[1749020406788,3.96719,2631.9,2631.8,0.00569725]
[1749020407681,3.96719,2631.9,2631.8,17.33269725]
[1749020408274,3.96719,2631.9,2631.8,0.00569725]
[1749020411579,3.96719,2631.9,2631.8,0.76511725]
[1749020411783,3.96719,2631.9,2631.8,0.00569725]
[1749020413883,3.96719,2631.9,2631.8,0.76511725]
[1749020416482,3.2078,2632.2,2631.8,0.00569725]
[1749020416680,0.75937,2632.1,2632.0,0.75934]
[1749020416879,0.75937,2632.1,2632.0,4.454]
[1749020417483,0.75937,2632.1,2632.0,5.21336]
[1749020419579,0.82641602,2632.1,2632.0,5.21336]
[1749020420182,0.06704602,2632.1,2632.0,5.21336]
[1749020420383,0.82637602,2632.1,2632.0,5.21336]
[1749020421082,0.75936,2632.0,2631.9,3.2078]
[1749020421289,0.75936,2632.0,2631.9,24.9828]
[1749020421591,0.75936,2632.0,2631.9,24.9818]
[1749020421887,1.97066,2632.0,2631.9,24.9818]
[1749020422388,0.75939,2631.9,2631.8,0.43039725]
[1749020422590,1.97069,2631.9,2631.8,22.20239725]
[1749020422791,3.05616252,2631.9,2631.8,0.00569725]
[1749020424889,3.05704567,2631.9,2631.8,0.00569725]
[1749020428592,3.05704567,2631.9,2631.8,17.32569725]
[1749020428796,1.97069,2631.9,2631.8,17.32569725]
[1749020428990,3.05963787,2631.9,2631.8,17.32569725]
[1749020429785,3.67043787,2631.9,2631.8,17.32569725]
[1749020434795,8.67043787,2631.9,2631.8,0.00569725]
[1749020435500,0.7595,2631.5,2631.4,4.453]
[1749020435706,0.7595,2631.5,2631.4,21.773]
[1749020435707,1.84844787,2631.5,2631.4,21.773]
[1749020436303,2.47364787,2631.5,2631.4,21.773]
[1749020436702,0.6252,2631.5,2631.4,22.53253]
[1749020436897,1.09232112,2631.5,2631.4,25.74033]
[1749020437813,0.66202387,2631.5,2631.4,31.99703]
[1749020438013,0.27052387,2631.5,2631.4,31.99703]
[1749020439508,0.27052387,2631.5,2631.4,10.22403]
[1749020439713,0.27052387,2631.5,2631.4,32.00203]
[1749020440813,0.82645602,2631.9,2631.8,0.75942]
[1749020441012,0.82645602,2631.9,2631.8,8.42022]
[1749020443312,0.82645602,2631.9,2631.8,3.96722]
[1749020443518,0.82645602,2631.9,2631.8,21.774]
[1749020443817,0.82645602,2631.9,2631.7,0.75942]
[1749020443818,0.75947,2631.6,2631.5,4.60699]
[1749020444018,0.75947,2631.6,2631.5,26.38399]
[1749020446112,0.75947,2631.7,2631.6,0.75945]
[1749020446706,0.6184,2631.8,2631.6,21.775]
[1749020446908,1.37783,2631.8,2631.7,0.75945]
[1749020447820,0.75943,2631.8,2631.7,0.75945]
[1749020448016,0.61753,2631.8,2631.7,0.75945]
[1749020449919,1.70749661,2631.8,2631.7,0.75945]
[1749020451009,1.77454263,2631.8,2631.7,0.75945]
[1749020452322,1.15701263,2631.8,2631.7,0.75945]
[1749020452522,1.15701263,2631.8,2631.7,2.66435]
[1749020453032,1.15870489,2631.8,2631.7,2.66435]
[1749020454018,1.15866197,2631.8,2631.7,2.66435]
[1749020457123,1.15867439,2631.8,2631.7,2.66435]
[1749020457327,1.91809439,2631.8,2631.7,2.66435]
[1749020458026,1.15867439,2631.8,2631.7,2.66435]
[1749020459527,1.91809439,2631.8,2631.7,2.66435]
[1749020459720,1.15867439,2631.8,2631.7,2.66435]
[1749020459919,1.91809439,2631.8,2631.7,2.66435]
[1749020460730,1.91820684,2631.8,2631.7,2.66435]
[1749020460932,1.15878684,2631.8,2631.7,2.66435]
[1749020461828,1.91820684,2631.8,2631.7,2.66435]
[1749020462029,1.15878684,2631.8,2631.7,2.66435]
[1749020462629,1.91820684,2631.8,2631.7,2.66435]
[1749020462832,1.91820684,2631.8,2631.7,18.07745]
[1749020463520,1.91820684,2631.8,2631.7,22.52945]
[1749020464434,1.91820684,2631.8,2631.7,0.75945]
[1749020464736,1.91820684,2631.8,2631.7,22.52945]
[1749020467031,1.15878684,2631.8,2631.7,22.52945]
[1749020467434,1.92112574,2631.8,2631.7,22.52945]
[1749020469536,1.16170574,2631.8,2631.7,22.52945]
[1749020469737,1.16170574,2631.8,2631.7,0.75945]
[1749020469937,1.81540574,2631.8,2631.7,22.52945]
[1749020470138,1.81540574,2631.8,2631.7,0.75945]
[1749020470339,1.81540574,2631.8,2631.7,22.52945]
[1749020471036,1.81540574,2631.8,2631.7,0.75945]
[1749020471228,1.81540574,2631.8,2631.7,22.52945]
[1749020471429,1.81553885,2631.8,2631.7,22.52945]
[1749020472342,1.81553885,2631.8,2631.7,0.75945]
[1749020472540,1.81553885,2631.8,2631.7,22.52945]
[1749020474637,2.57495885,2631.8,2631.7,22.52945]
[1749020475640,2.57516527,2631.8,2631.7,5.21145]
[1749020475840,2.57516527,2631.8,2631.7,22.52845]
[1749020476038,2.57516527,2631.8,2631.7,21.769]
[1749020476240,0.75945,2631.7,2631.6,0.4243]
[1749020476442,3.71884925,2631.7,2631.6,0.4243]
[1749020476632,3.71884925,2631.7,2631.6,17.7413]
[1749020479437,3.71815045,2631.7,2631.6,17.7413]
[1749020479638,3.71815045,2631.7,2631.6,17.7423]
[1749020480044,3.71815045,2631.7,2631.6,0.4243]
[1749020480343,6.92595045,2631.7,2631.6,17.7423]
[1749020480544,6.99299647,2631.7,2631.6,17.7423]
[1749020482045,6.99299647,2631.7,2631.6,18.50178]
[1749020482249,3.78519647,2631.7,2631.6,18.50178]
[1749020482442,3.78519647,2631.7,2631.6,17.7423]
[1749020483351,3.78178677,2631.7,2631.6,18.50178]
[1749020484545,3.78178677,2631.7,2631.6,17.7423]
[1749020484948,1.80443677,2631.7,2631.6,21.70957]
[1749020485846,2.56388677,2631.7,2631.6,18.50177]
[1749020486045,2.56388677,2631.7,2631.6,21.70957]
[1749020487255,1.47299602,2631.7,2631.6,21.70957]
[1749020487455,2.56353246,2631.7,2631.6,21.70957]
[1749020489057,1.47299602,2631.7,2631.6,21.70957]
[1749020489357,2.56340232,2631.7,2631.6,17.7423]
[1749020489559,3.88840232,2631.7,2631.6,17.7423]
[1749020490058,3.88840232,2631.7,2631.6,22.1963]
[1749020491251,3.88840232,2631.7,2631.6,22.95577]
[1749020491460,2.5639395,2631.7,2631.6,22.95577]
[1749020491759,2.5639395,2631.7,2631.6,26.16357]
[1749020492450,2.5639395,2631.7,2631.6,22.95577]
[1749020492756,2.5639395,2631.7,2631.6,25.4041]
[1749020492958,2.5639395,2631.7,2631.6,26.16357]
[1749020493845,1.9174395,2631.7,2631.6,26.16357]
[1749020495548,1.92267856,2631.7,2631.6,25.4041]
[1749020495750,1.92267856,2631.7,2631.6,22.1963]
[1749020495949,1.92267856,2631.7,2631.6,25.4041]
[1749020496556,1.92267856,2631.7,2631.6,26.16358]
[1749020496746,1.92267856,2631.7,2631.6,22.1963]
[1749020496945,1.92267856,2631.7,2631.6,26.16358]
[1749020498358,1.16322856,2631.7,2631.6,26.16358]
[1749020498558,1.92267856,2631.7,2631.6,26.16358]
[1749020499857,1.16322856,2631.7,2631.6,26.16358]
[1749020500956,1.92267856,2631.7,2631.6,26.16358]
[1749020501755,1.16322856,2631.7,2631.6,26.16358]
[1749020502856,1.16322856,2631.7,2631.6,27.40208]
[1749020503158,1.16322856,2631.7,2631.6,32.40208]
[1749020503555,1.18621809,2631.7,2631.6,32.40208]
[1749020504459,1.94566809,2631.7,2631.6,27.40008]
[1749020504654,1.18621809,2631.7,2631.6,27.40008]
[1749020507462,1.18584729,2631.7,2631.6,27.40008]
[1749020510670,0.01884729,2631.7,2631.6,27.40008]
[1749020510865,0.6406,2632.2,2632.1,0.75933]
[1749020511066,1.3999,2632.2,2632.1,8.41913]
[1749020511970,1.3999,2632.2,2632.1,7.6598]
[1749020512365,1.3999,2632.2,2632.1,8.41913]
[1749020513773,1.3999,2632.2,2632.1,8.84463]
[1749020514569,1.3999,2632.2,2632.1,8.0853]
[1749020516170,1.3999,2632.2,2632.1,0.4255]
[1749020516571,1.3999,2632.2,2632.1,17.7405]
[1749020516764,6.3999,2632.2,2632.1,0.4255]
[1749020517078,0.75948,2631.6,2631.5,3.2078]
[1749020517378,0.75948,2631.6,2631.5,24.9748]
[1749020517570,1.42198,2631.6,2631.5,24.9748]
[1749020517776,1.42198,2631.6,2631.5,25.73429]
[1749020519276,1.42198,2631.6,2631.5,24.9748]
[1749020519579,1.42198,2631.6,2631.5,25.7343]
[1749020520481,1.42198,2631.6,2631.5,7.6598]
[1749020520776,2.67028,2631.6,2631.5,24.9748]
[1749020521688,2.67028,2631.6,2631.4,1.7313]
[1749020521689,0.7595,2631.5,2631.4,1.7313]
[1749020521979,5.2156,2631.5,2631.4,1.7313]
[1749020522276,0.75956,2631.3,2631.2,0.00569725]
[1749020522967,1.89328491,2631.3,2631.2,0.00569725]
[1749020525272,1.89328491,2631.3,2631.2,17.32269725]
[1749020526277,1.89328491,2631.3,2631.2,0.00569725]
[1749020526477,6.89328491,2631.3,2631.2,0.00569725]
[1749020526676,6.89328491,2631.3,2630.1,4.452]
[1749020526677,6.13372491,2631.3,2630.1,4.452]
[1749020526883,0.75988,2630.2,2630.1,5.21191]
[1749020527069,1.13372491,2630.2,2630.1,22.53291]
[1749020527275,0.75984,2630.4,2630.3,0.75982]
[1749020527582,1.89165853,2630.4,2630.3,0.75982]
[1749020527785,1.13181853,2630.4,2630.3,0.75982]
[1749020528079,1.13181853,2630.4,2630.3,3.96762]
[1749020528477,0.75982,2630.4,2630.3,3.96762]
[1749020528877,1.40851,2630.5,2630.4,0.75982]
[1749020529083,2.53820234,2630.5,2630.4,0.75982]
[1749020529280,2.53820234,2630.5,2630.4,1.41992]
[1749020529581,0.00569725,2630.6,2630.5,0.75979]
[1749020529781,1.13437538,2630.6,2630.5,5.21179]
[1749020529979,0.00569725,2630.6,2630.5,5.21179]
[1749020532586,0.00569725,2630.6,2630.5,6.53989]
[1749020536087,0.6161,2631.2,2631.1,0.75962]
[1749020536278,1.74342044,2631.2,2631.1,18.08762]
[1749020537088,1.12732044,2631.2,2631.1,18.08762]
[1749020537692,0.75958,2631.3,2631.2,0.75959]
[1749020537876,0.75959,2631.2,2631.1,18.0876]
[1749020538083,1.88708769,2631.2,2631.1,18.0876]
[1749020538287,1.88708769,2631.2,2631.1,17.328]
[1749020538686,0.75962,2631.1,2631.0,8.2654]
[1749020538886,1.12749769,2631.1,2631.0,26.35403]
[1749020539286,0.75962,2631.2,2631.1,0.7596]
[1749020539486,1.88744491,2631.2,2631.1,0.7596]
[1749020539793,1.12782491,2631.2,2631.1,0.7596]
[1749020540089,1.88741491,2631.2,2631.1,0.7596]
[1749020540391,1.95446093,2631.2,2631.1,0.7596]
[1749020540889,1.19487093,2631.2,2631.1,0.7596]
[1749020541784,1.19561125,2631.2,2631.1,0.7596]
[1749020541987,0.06704602,2631.2,2631.1,2.0267]
[1749020543197,1.19641153,2631.2,2631.1,2.0267]
[1749020543688,0.06704602,2631.2,2631.1,2.0267]
[1749020545079,1.19774358,2631.2,2631.1,2.0267]
[1749020545697,0.06704602,2631.2,2631.1,2.0267]
[1749020547294,0.06704602,2631.2,2631.1,2.4068]
[1749020549493,1.19852973,2631.2,2631.1,2.4068]
[1749020549697,1.19856117,2631.2,2631.1,19.7268]
[1749020550892,0.06704602,2631.2,2631.1,19.7268]
[1749020552803,1.19879588,2631.2,2631.1,19.7268]
[1749020553394,0.06704602,2631.2,2631.1,19.7268]
[1749020558999,0.00569725,2631.4,2631.3,1.13966]
[1749020559205,1.2871,2631.8,2631.7,0.75944]
[1749020559406,2.41868554,2631.8,2631.7,8.41924]
[1749020560109,2.41868554,2631.8,2631.7,8.72257118]
[1749020561191,1.13158554,2631.8,2631.7,8.72257118]
[1749020561398,0.00569725,2632.0,2631.9,0.75939]
[1749020561618,1.74938048,2632.0,2631.9,18.07739]
[1749020562797,2.50874048,2632.0,2631.9,0.75939]
[1749020562996,1.74938048,2632.0,2631.9,18.07639]
[1749020563300,0.75942,2631.9,2631.8,0.7594]
[1749020563601,0.75942,2631.9,2631.8,22.52742]
[1749020563602,3.77220323,2631.9,2631.8,22.52742]
[1749020565411,3.77268942,2631.9,2631.8,22.52742]
[1749020565702,3.77268942,2631.9,2631.8,4.451]
[1749020565898,3.77268942,2631.9,2631.8,21.767]
[1749020566803,3.77268942,2631.9,2631.8,22.52642]
[1749020567101,3.77268942,2631.9,2631.8,21.767]
[1749020568613,3.77268942,2631.9,2631.8,22.52642]
[1749020569403,2.64012,2631.9,2631.8,22.52642]
[1749020569707,3.8404175,2631.9,2631.8,21.767]
[1749020570308,3.8404175,2631.9,2631.8,4.451]
[1749020570506,0.75948,2631.6,2631.5,5.21049]
[1749020570805,0.75948,2631.6,2631.5,22.52649]
[1749020571008,1.89273148,2631.6,2631.5,22.52649]
[1749020571206,2.53343148,2631.6,2631.5,22.52649]
[1749020574412,2.53403763,2631.6,2631.5,22.52649]
[1749020575009,2.53403763,2631.6,2631.5,5.21049]
[1749020575211,2.53403763,2631.6,2631.5,22.52649]
[1749020577507,2.53417184,2631.6,2631.5,22.52649]
[1749020580815,1.77469184,2631.6,2631.5,22.52649]
[1749020582914,1.77469184,2631.6,2631.5,22.90659]
[1749020583617,2.53417184,2631.6,2631.5,22.90659]
[1749020584109,2.53458904,2631.6,2631.5,22.90659]
[1749020585907,2.60163506,2631.6,2631.5,22.90659]
[1749020587216,1.20145506,2631.6,2631.5,22.90659]
[1749020587411,1.20145506,2631.6,2631.5,23.55779]
[1749020587620,1.20145506,2631.6,2631.5,24.85859]
[1749020588011,1.20133223,2631.6,2631.5,24.85859]
[1749020589625,0.00569725,2632.0,2631.9,0.75939]
[1749020589927,0.00569725,2632.0,2631.9,5.21039]
[1749020593317,0.76505725,2632.0,2631.9,5.21039]
[1749020597111,0.76505725,2632.0,2631.9,22.52439]
[1749020599722,0.00569725,2632.0,2631.9,22.52439]
[1749020600225,0.83210327,2632.0,2631.9,22.52439]
[1749020601628,1.9600263,2632.0,2631.9,22.52439]
[1749020603918,1.9600056,2632.0,2631.9,22.52439]
[1749020605325,1.9600056,2632.0,2631.9,21.765]
[1749020605928,1.9600056,2632.0,2631.9,22.52439]
[1749020607824,0.75939,2631.9,2631.8,4.57631]
[1749020608023,2.51299233,2631.9,2631.8,25.72921]
[1749020608328,2.51299233,2631.9,2631.8,7.6578]
[1749020608532,2.51299233,2631.9,2631.8,24.9698]
[1749020608824,4.36339233,2631.9,2631.8,25.72922]
[1749020609627,3.60400233,2631.9,2631.8,25.72922]
[1749020609826,2.35730233,2631.9,2631.8,25.72922]
[1749020610226,2.35730233,2631.9,2631.8,8.41722]
[1749020610525,3.11669233,2631.9,2631.8,25.72922]
[1749020611427,3.11669233,2631.9,2631.8,7.6578]
[1749020611729,0.75948,2631.6,2631.5,3.5879]
[1749020611917,1.12890476,2631.6,2631.5,8.79739]
[1749020612230,1.88838476,2631.6,2631.5,20.8999]
[1749020612429,1.88838476,2631.6,2631.5,3.5879]
[1749020612626,0.75957,2631.3,2631.2,8.0379]
[1749020612823,1.88847476,2631.3,2631.2,25.3499]
[1749020613526,3.17317476,2631.3,2631.2,26.10949]
[1749020613932,3.17317476,2631.3,2631.2,25.3499]
[1749020614934,3.17317476,2631.3,2631.2,25.3509]
[1749020615131,3.17317476,2631.3,2631.2,3.5879]
[1749020615432,3.17317476,2631.3,2631.2,20.9009]
[1749020615625,3.17247417,2631.3,2631.2,20.9009]
[1749020615825,3.17247417,2631.3,2631.2,3.5879]
[1749020616031,3.17247417,2631.3,2631.2,20.9009]
[1749020616224,2.41290417,2631.3,2631.2,21.66049]
[1749020616424,1.12820417,2631.3,2631.2,21.66049]
[1749020617824,1.12820417,2631.3,2631.2,22.30919]
[1749020618133,1.88777417,2631.3,2631.2,22.30919]
[1749020619629,1.88563569,2631.3,2631.2,22.30919]
[1749020620630,1.12606569,2631.3,2631.2,22.30919]
[1749020622031,1.12606569,2631.3,2631.2,23.60579]
[1749020622736,0.82652602,2631.6,2631.5,0.75951]
[1749020622931,0.06704602,2631.6,2631.5,8.41731]
[1749020623141,1.19271559,2631.6,2631.5,8.41731]
[1749020623446,0.82652602,2631.6,2631.5,8.41731]
[1749020623937,1.95207342,2631.6,2631.5,8.41731]
[1749020625340,1.19259342,2631.6,2631.5,8.41731]
[1749020627440,1.95207342,2631.6,2631.5,8.41731]
[1749020627937,1.95257109,2631.6,2631.5,8.41731]
[1749020629536,1.95257109,2631.6,2631.5,25.73131]
[1749020629934,1.95257109,2631.6,2631.5,24.9718]
[1749020632038,1.95257109,2631.6,2631.5,3.2078]
[1749020632344,0.75954,2631.4,2631.3,4.8301]
[1749020632539,1.88558507,2631.4,2631.3,22.90266]
[1749020632842,1.12604507,2631.4,2631.3,22.90266]
[1749020633534,0.6594,2631.5,2631.4,0.75954]
[1749020633840,1.78638296,2631.5,2631.4,0.75954]
[1749020634042,1.12698296,2631.5,2631.4,3.96734]
[1749020634241,1.12698296,2631.5,2631.4,5.21454]
[1749020634539,0.06704602,2631.6,2631.5,0.75951]
[1749020634733,0.06704602,2631.6,2631.5,2.60941]
[1749020634933,1.19406806,2631.6,2631.5,2.60941]
[1749020641343,1.19406806,2631.6,2631.5,19.92141]
[1749020641538,1.19406806,2631.6,2631.5,18.67421]
[1749020646446,1.19439644,2631.6,2631.5,18.67421]
[1749020647041,1.19439644,2631.6,2631.5,5.20751]
[1749020647247,1.19439644,2631.6,2631.5,22.51851]
[1749020649242,1.19439644,2631.6,2631.5,23.15851]
[1749020650343,1.19504975,2631.6,2631.5,23.15851]
[1749020652754,1.80654975,2631.6,2631.5,23.15851]
[1749020652953,1.80693404,2631.6,2631.5,23.15851]
[1749020654252,1.80693566,2631.6,2631.5,23.15851]
[1749020657155,1.80693566,2631.6,2631.5,4.448]
[1749020657357,1.80693566,2631.6,2631.5,21.758]
[1749020657554,2.56641566,2631.6,2631.5,21.758]
[1749020657755,1.80693566,2631.6,2631.5,21.758]
[1749020658450,1.80693566,2631.6,2631.5,5.20751]
[1749020658656,2.56641566,2631.6,2631.5,22.51751]
[1749020659053,1.80693566,2631.6,2631.5,22.51751]
[1749020659254,2.56641566,2631.6,2631.5,22.51751]
[1749020660957,0.75951,2631.5,2631.4,3.5879]
[1749020661161,2.95768964,2631.5,2631.3,0.3801]
[1749020661453,1.88791964,2631.4,2631.3,0.3801]
[1749020661660,0.75964,2631.0,2630.9,0.00569725]
[1749020661850,1.88802964,2631.0,2630.9,17.31569725]
[1749020662250,1.8881631,2631.0,2630.9,0.00569725]
[1749020662460,3.7174631,2631.0,2630.9,17.31569725]
[1749020662658,0.75979,2630.5,2630.4,4.448]
[1749020662864,1.8883131,2630.5,2630.4,4.448]
[1749020663056,1.8883131,2630.5,2630.0,3.2078]
[1749020663057,0.3795,2630.1,2630.0,3.2078]